[Event "Titled Tuesday Blitz September 13 Late 2022"]
[White "Pranav, V"]
[Black "Naroditsky, Daniel"]
[WhiteFideId "25060783"]
[BlackFideId "2026961"]
[WhiteElo "2390"]
[BlackElo "2628"]
[Result "1-0"]
[Round "10"]
[TimeControl "180+1"]
[Date "2022.09.13"]
[WhiteClock "0:00:10"]
[BlackClock "0:00:08"]

1. e4 {[%clk 0:03:00]}  c5 {[%clk 0:03:00]} 2. Nf3 {[%clk 0:03:01]}  Nf6 {[%clk 0:03:00]} 3. Nc3 {[%clk 0:03:00]}  d5 {[%clk 0:03:00]} 4. Bb5+ {[%clk 0:02:59]}  Bd7 {[%clk 0:03:00]} 5. e5 {[%clk 0:02:59]}  Bxb5 {[%clk 0:02:56]} 6. Nxb5 {[%clk 0:02:55]}  Qd7 {[%clk 0:02:56]} 7. a4 {[%clk 0:02:52]}  a6 {[%clk 0:02:50]} 8. Nc3 {[%clk 0:02:51]}  Ne4 {[%clk 0:02:50]} 9. O-O {[%clk 0:02:49]}  Nc6 {[%clk 0:02:49]} 10. Re1 {[%clk 0:02:49]}  Nxc3 {[%clk 0:02:32]} 11. bxc3 {[%clk 0:02:50]}  e6 {[%clk 0:02:33]} 12. d3 {[%clk 0:02:49]}  Be7 {[%clk 0:02:33]} 13. h4 {[%clk 0:02:49]}  h6 {[%clk 0:02:33]} 14. h5 {[%clk 0:02:46]}  O-O {[%clk 0:02:33]} 15. Qe2 {[%clk 0:02:41]}  b5 {[%clk 0:02:31]} 16. Bf4 {[%clk 0:02:32]}  f5 {[%clk 0:02:19]} 17. exf6 {[%clk 0:02:23]}  Bxf6 {[%clk 0:02:15]} 18. axb5 {[%clk 0:02:22]}  axb5 {[%clk 0:01:59]} 19. Rxa8 {[%clk 0:02:20]}  Rxa8 {[%clk 0:02:00]} 20. Qxe6+ {[%clk 0:02:18]}  Qxe6 {[%clk 0:02:01]} 21. Rxe6 {[%clk 0:02:19]}  Rc8 {[%clk 0:02:02]} 22. Bd2 {[%clk 0:02:04]}  b4 {[%clk 0:01:53]} 23. cxb4 {[%clk 0:01:48]}  Nxb4 {[%clk 0:01:54]} 24. Ne1 {[%clk 0:01:42]}  Ra8 {[%clk 0:01:38]} 25. c3 {[%clk 0:01:19]}  Na2 {[%clk 0:01:37]} 26. c4 {[%clk 0:01:19]}  dxc4 {[%clk 0:01:24]} 27. dxc4 {[%clk 0:01:20]}  Ra4 {[%clk 0:01:25]} 28. Rc6 {[%clk 0:01:13]}  Rxc4 {[%clk 0:01:21]} 29. Bxh6 {[%clk 0:01:12]}  Nb4 {[%clk 0:00:49]} 30. Rc8+ {[%clk 0:01:11]}  Kh7 {[%clk 0:00:50]} 31. Be3 {[%clk 0:01:09]}  Nd5 {[%clk 0:00:50]} 32. Bd2 {[%clk 0:00:59]}  Ne7 {[%clk 0:00:46]} 33. Rc7 {[%clk 0:00:46]}  Nd5 {[%clk 0:00:45]} 34. Rd7 {[%clk 0:00:45]}  Nf4 {[%clk 0:00:32]} 35. g4 {[%clk 0:00:20]}  Ne6 {[%clk 0:00:24]} 36. f3 {[%clk 0:00:17]}  Ra4 {[%clk 0:00:23]} 37. Kf1 {[%clk 0:00:14]}  c4 {[%clk 0:00:23]} 38. Rd6 {[%clk 0:00:13]}  Nc5 {[%clk 0:00:15]} 39. g5 {[%clk 0:00:11]}  Be7 {[%clk 0:00:13]} 40. g6+ {[%clk 0:00:09]}  Kg8 {[%clk 0:00:14]} 41. Rc6 {[%clk 0:00:10]}  Nd7 {[%clk 0:00:08]} 42. Rc7 {[%clk 0:00:10]} 1-0


[Site "https://www.chess.com"]

[Event "Titled Tuesday Blitz September 13 Late 2022"]
[White "Sadhwani, Raunak"]
[Black "Livaic, Leon"]
[WhiteFideId "35093487"]
[BlackFideId "14531534"]
[WhiteElo "2656"]
[BlackElo "2540"]
[Result "1-0"]
[Round "10"]
[TimeControl "180+1"]
[Date "2022.09.13"]
[WhiteClock "0:02:19"]
[BlackClock "0:01:30"]

1. Nf3 {[%clk 0:03:00]}  Nf6 {[%clk 0:02:59]} 2. c4 {[%clk 0:03:01]}  b6 {[%clk 0:03:00]} 3. g3 {[%clk 0:02:55]}  c5 {[%clk 0:02:59]} 4. Bg2 {[%clk 0:02:55]}  Bb7 {[%clk 0:02:59]} 5. O-O {[%clk 0:02:56]}  g6 {[%clk 0:03:00]} 6. Nc3 {[%clk 0:02:56]}  Bg7 {[%clk 0:03:00]} 7. d4 {[%clk 0:02:52]}  cxd4 {[%clk 0:03:00]} 8. Qxd4 {[%clk 0:02:53]}  d6 {[%clk 0:03:01]} 9. Rd1 {[%clk 0:02:51]}  Nbd7 {[%clk 0:02:59]} 10. b3 {[%clk 0:02:48]}  Rc8 {[%clk 0:02:58]} 11. Bb2 {[%clk 0:02:48]}  a6 {[%clk 0:02:59]} 12. Qe3 {[%clk 0:02:44]}  O-O {[%clk 0:02:54]} 13. h3 {[%clk 0:02:44]}  Ne4 {[%clk 0:02:43]} 14. Rac1 {[%clk 0:02:43]}  Nxc3 {[%clk 0:02:43]} 15. Bxc3 {[%clk 0:02:43]}  Bxc3 {[%clk 0:02:44]} 16. Rxc3 {[%clk 0:02:44]}  Nf6 {[%clk 0:02:44]} 17. a4 {[%clk 0:02:39]}  Qc7 {[%clk 0:02:38]} 18. Rcd3 {[%clk 0:02:35]}  Rfe8 {[%clk 0:02:22]} 19. Rd4 {[%clk 0:02:30]}  Qc5 {[%clk 0:02:15]} 20. Qd2 {[%clk 0:02:24]}  Bxf3 {[%clk 0:01:50]} 21. Bxf3 {[%clk 0:02:25]}  Rc7 {[%clk 0:01:33]} 22. h4 {[%clk 0:02:23]}  a5 {[%clk 0:01:33]} 23. h5 {[%clk 0:02:19]}  Nxh5 {[%clk 0:01:31]} 24. Rd5 {[%clk 0:02:19]}  Qb4 {[%clk 0:01:29]} 25. Qxb4 {[%clk 0:02:19]}  axb4 {[%clk 0:01:29]} 26. Bxh5 {[%clk 0:02:20]}  gxh5 {[%clk 0:01:30]} 27. Rb5 {[%clk 0:02:20]}  Rc5 {[%clk 0:01:30]} 28. Rxb6 {[%clk 0:02:19]} 1-0


[Site "https://www.chess.com"]

[Event "Titled Tuesday Blitz September 13 Late 2022"]
[White "Shirov, Alexei"]
[Black "Sjugirov, Sanan"]
[WhiteFideId "2209390"]
[BlackFideId "4189302"]
[WhiteElo "2678"]
[BlackElo "2609"]
[Result "0-1"]
[Round "10"]
[TimeControl "180+1"]
[Date "2022.09.13"]
[WhiteClock "0:00:33"]
[BlackClock "0:00:29"]

1. e4 {[%clk 0:03:00]}  c6 {[%clk 0:03:00]} 2. d4 {[%clk 0:03:00]}  d5 {[%clk 0:03:01]} 3. e5 {[%clk 0:03:00]}  Bf5 {[%clk 0:03:01]} 4. h4 {[%clk 0:03:00]}  h5 {[%clk 0:03:01]} 5. Bd3 {[%clk 0:03:00]}  Bxd3 {[%clk 0:03:00]} 6. Qxd3 {[%clk 0:03:00]}  Qa5+ {[%clk 0:03:01]} 7. Nd2 {[%clk 0:02:57]}  e6 {[%clk 0:03:01]} 8. Nf3 {[%clk 0:02:56]}  Ne7 {[%clk 0:02:55]} 9. O-O {[%clk 0:02:55]}  Nf5 {[%clk 0:02:54]} 10. Nb3 {[%clk 0:02:54]}  Qa6 {[%clk 0:02:52]} 11. Qd1 {[%clk 0:02:53]}  b6 {[%clk 0:02:49]} 12. Bg5 {[%clk 0:02:45]}  c5 {[%clk 0:02:46]} 13. c3 {[%clk 0:02:45]}  Nc6 {[%clk 0:02:45]} 14. a4 {[%clk 0:02:34]}  c4 {[%clk 0:02:38]} 15. Nc1 {[%clk 0:02:33]}  Be7 {[%clk 0:02:32]} 16. Ne2 {[%clk 0:02:31]}  Bxg5 {[%clk 0:02:28]} 17. Nxg5 {[%clk 0:02:29]}  Nxh4 {[%clk 0:02:24]} 18. Nf4 {[%clk 0:02:26]}  g6 {[%clk 0:02:03]} 19. f3 {[%clk 0:02:11]}  Qb7 {[%clk 0:01:59]} 20. Qd2 {[%clk 0:02:01]}  Qe7 {[%clk 0:01:57]} 21. Nfh3 {[%clk 0:01:59]}  Nf5 {[%clk 0:01:55]} 22. Qf4 {[%clk 0:01:50]}  h4 {[%clk 0:01:47]} 23. Rfe1 {[%clk 0:01:49]}  Rh5 {[%clk 0:01:46]} 24. Qg4 {[%clk 0:01:49]}  Na5 {[%clk 0:01:42]} 25. Re2 {[%clk 0:01:44]}  Nb3 {[%clk 0:01:41]} 26. Rae1 {[%clk 0:01:43]}  a6 {[%clk 0:01:37]} 27. Rf2 {[%clk 0:01:34]}  b5 {[%clk 0:01:37]} 28. Ne4 {[%clk 0:01:33]}  dxe4 {[%clk 0:01:29]} 29. fxe4 {[%clk 0:01:32]}  Ng3 {[%clk 0:01:28]} 30. Rf6 {[%clk 0:01:28]}  O-O-O {[%clk 0:01:14]} 31. Re3 {[%clk 0:01:19]}  Nxd4 {[%clk 0:01:08]} 32. cxd4 {[%clk 0:01:14]}  Rxd4 {[%clk 0:01:09]} 33. Kh2 {[%clk 0:01:09]}  Rxe5 {[%clk 0:00:50]} 34. Qf4 {[%clk 0:00:57]}  Rexe4 {[%clk 0:00:46]} 35. Rxe4 {[%clk 0:00:53]}  Rxe4 {[%clk 0:00:46]} 36. Qf3 {[%clk 0:00:44]}  Qd6 {[%clk 0:00:35]} 37. Rxf7 {[%clk 0:00:43]}  Nf5+ {[%clk 0:00:35]} 38. Kh1 {[%clk 0:00:37]}  Re1+ {[%clk 0:00:35]} 39. Ng1 {[%clk 0:00:36]}  Ng3+ {[%clk 0:00:34]} 40. Kh2 {[%clk 0:00:34]}  Ne2+ {[%clk 0:00:30]} 41. g3 {[%clk 0:00:33]}  Qxg3+ {[%clk 0:00:29]} 0-1


[Site "https://www.chess.com"]

[Event "Titled Tuesday Blitz September 13 Late 2022"]
[White "Silva Lucena, Cristian"]
[Black "Bilan, Danila"]
[WhiteFideId "2232588"]
[BlackFideId "24161918"]
[WhiteElo "2223"]
[BlackElo "2164"]
[Result "0-1"]
[Round "10"]
[TimeControl "180+1"]
[Date "2022.09.13"]
[WhiteClock "0:00:08"]
[BlackClock "0:00:07"]

1. Nf3 {[%clk 0:03:00]}  d5 {[%clk 0:02:59]} 2. c4 {[%clk 0:03:00]}  c6 {[%clk 0:02:59]} 3. g3 {[%clk 0:03:00]}  Nf6 {[%clk 0:02:58]} 4. Bg2 {[%clk 0:03:00]}  Bf5 {[%clk 0:02:59]} 5. O-O {[%clk 0:02:57]}  e6 {[%clk 0:02:58]} 6. b3 {[%clk 0:02:57]}  h6 {[%clk 0:02:57]} 7. Bb2 {[%clk 0:02:57]}  Nbd7 {[%clk 0:02:57]} 8. Nc3 {[%clk 0:02:54]}  Bc5 {[%clk 0:02:49]} 9. Rc1 {[%clk 0:02:54]}  O-O {[%clk 0:02:48]} 10. e3 {[%clk 0:02:53]}  Bd3 {[%clk 0:02:44]} 11. Re1 {[%clk 0:02:49]}  dxc4 {[%clk 0:02:28]} 12. bxc4 {[%clk 0:02:50]}  Bxc4 {[%clk 0:02:28]} 13. Na4 {[%clk 0:02:48]}  b5 {[%clk 0:02:24]} 14. Nxc5 {[%clk 0:01:54]}  Nxc5 {[%clk 0:02:22]} 15. Ne5 {[%clk 0:01:55]}  Nd3 {[%clk 0:01:53]} 16. Nxd3 {[%clk 0:01:52]}  Qxd3 {[%clk 0:01:51]} 17. Bf1 {[%clk 0:01:27]}  Qd5 {[%clk 0:01:29]} 18. Bxc4 {[%clk 0:01:06]}  bxc4 {[%clk 0:01:30]} 19. Bxf6 {[%clk 0:01:07]}  gxf6 {[%clk 0:01:29]} 20. Qg4+ {[%clk 0:01:07]}  Kh7 {[%clk 0:01:24]} 21. Qxc4 {[%clk 0:01:07]}  Qxd2 {[%clk 0:01:22]} 22. Re2 {[%clk 0:01:04]}  Qd5 {[%clk 0:01:04]} 23. e4 {[%clk 0:01:04]}  Qh5 {[%clk 0:00:34]} 24. Rec2 {[%clk 0:00:57]}  Rfc8 {[%clk 0:00:31]} 25. Qd4 {[%clk 0:00:51]}  Rd8 {[%clk 0:00:20]} 26. Qxf6 {[%clk 0:00:42]}  Rd1+ {[%clk 0:00:20]} 27. Kg2 {[%clk 0:00:42]}  Rxc1 {[%clk 0:00:16]} 28. Rxc1 {[%clk 0:00:43]}  Rc8 {[%clk 0:00:16]} 29. Rc3 {[%clk 0:00:30]}  Qg6 {[%clk 0:00:13]} 30. Qf4 {[%clk 0:00:25]}  c5 {[%clk 0:00:09]} 31. Qe3 {[%clk 0:00:20]}  Qf6 {[%clk 0:00:09]} 32. e5 {[%clk 0:00:20]}  Qe7 {[%clk 0:00:08]} 33. h4 {[%clk 0:00:18]}  c4 {[%clk 0:00:08]} 34. Qe4+ {[%clk 0:00:17]}  Kg7 {[%clk 0:00:06]} 35. Rxc4 {[%clk 0:00:18]}  Rxc4 {[%clk 0:00:06]} 36. Qxc4 {[%clk 0:00:18]}  Qb7+ {[%clk 0:00:07]} 37. Kh2 {[%clk 0:00:19]}  Qb2 {[%clk 0:00:07]} 38. Qg4+ {[%clk 0:00:14]}  Kf8 {[%clk 0:00:07]} 39. Qf4 {[%clk 0:00:15]}  Qxa2 {[%clk 0:00:05]} 40. Qxh6+ {[%clk 0:00:15]}  Ke8 {[%clk 0:00:06]} 41. Qf6 {[%clk 0:00:14]}  Qe2 {[%clk 0:00:06]} 42. Kh3 {[%clk 0:00:11]}  a5 {[%clk 0:00:06]} 43. g4 {[%clk 0:00:11]}  a4 {[%clk 0:00:06]} 44. h5 {[%clk 0:00:11]}  a3 {[%clk 0:00:06]} 45. h6 {[%clk 0:00:11]}  a2 {[%clk 0:00:07]} 46. h7 {[%clk 0:00:10]}  Qd3+ {[%clk 0:00:07]} 47. Kg2 {[%clk 0:00:08]}  Qxh7 {[%clk 0:00:07]} 0-1


[Site "https://www.chess.com"]

[Event "Titled Tuesday Blitz September 13 Late 2022"]
[White "Sivakumar, Shaaketh"]
[Black "Indjic, Aleksandar"]
[WhiteFideId "30940176"]
[BlackFideId "911925"]
[WhiteElo "1799"]
[BlackElo "2592"]
[Result "0-1"]
[Round "10"]
[TimeControl "180+1"]
[Date "2022.09.13"]
[WhiteClock "0:00:32"]
[BlackClock "0:00:44"]

1. d4 {[%clk 0:03:00]}  Nf6 {[%clk 0:02:34]} 2. Bf4 {[%clk 0:02:59]}  c5 {[%clk 0:02:32]} 3. d5 {[%clk 0:02:56]}  g6 {[%clk 0:02:30]} 4. Nc3 {[%clk 0:02:54]}  Qa5 {[%clk 0:02:26]} 5. Bd2 {[%clk 0:02:33]}  Bg7 {[%clk 0:02:25]} 6. Nf3 {[%clk 0:02:32]}  O-O {[%clk 0:02:23]} 7. e4 {[%clk 0:02:30]}  d6 {[%clk 0:02:23]} 8. Be2 {[%clk 0:02:30]}  a6 {[%clk 0:02:09]} 9. a4 {[%clk 0:02:28]}  Bg4 {[%clk 0:01:51]} 10. O-O {[%clk 0:02:23]}  Nbd7 {[%clk 0:01:51]} 11. Be3 {[%clk 0:02:17]}  Qb4 {[%clk 0:01:46]} 12. Nd2 {[%clk 0:01:48]}  Qxb2 {[%clk 0:01:34]} 13. Na2 {[%clk 0:01:32]}  Bxe2 {[%clk 0:01:29]} 14. Qxe2 {[%clk 0:01:33]}  Qb6 {[%clk 0:01:12]} 15. Rab1 {[%clk 0:01:27]}  Qc7 {[%clk 0:01:12]} 16. f3 {[%clk 0:01:23]}  b5 {[%clk 0:01:11]} 17. axb5 {[%clk 0:01:21]}  axb5 {[%clk 0:01:12]} 18. Nc3 {[%clk 0:01:21]}  b4 {[%clk 0:01:12]} 19. Nb5 {[%clk 0:01:21]}  Qb7 {[%clk 0:01:10]} 20. c3 {[%clk 0:01:20]}  Ra5 {[%clk 0:01:06]} 21. c4 {[%clk 0:01:20]}  Rfa8 {[%clk 0:01:05]} 22. f4 {[%clk 0:01:19]}  Ra2 {[%clk 0:01:00]} 23. Qf3 {[%clk 0:01:07]}  Ne8 {[%clk 0:00:53]} 24. e5 {[%clk 0:01:01]}  Nc7 {[%clk 0:00:51]} 25. Nxc7 {[%clk 0:00:57]}  Qxc7 {[%clk 0:00:52]} 26. Ne4 {[%clk 0:00:56]}  R8a3 {[%clk 0:00:49]} 27. e6 {[%clk 0:00:50]}  Rxe3 {[%clk 0:00:47]} 28. Qxe3 {[%clk 0:00:42]}  Bd4 {[%clk 0:00:45]} 29. Qxd4 {[%clk 0:00:42]}  cxd4 {[%clk 0:00:45]} 30. exd7 {[%clk 0:00:40]}  Qxd7 {[%clk 0:00:45]} 31. Rxb4 {[%clk 0:00:39]}  Qf5 {[%clk 0:00:45]} 32. Ng3 {[%clk 0:00:32]}  Qc2 {[%clk 0:00:44]} 0-1


[Site "https://www.chess.com"]

[Event "Titled Tuesday Blitz September 13 Late 2022"]
[White "Sliwicki, Damian"]
[Black "Tayar, Jonathan"]
[WhiteFideId "1127128"]
[BlackFideId "2606534"]
[WhiteElo "2135"]
[BlackElo "2413"]
[Result "0-1"]
[Round "10"]
[TimeControl "180+1"]
[Date "2022.09.13"]
[WhiteClock "0:00:07"]
[BlackClock "0:00:14"]

1. e4 {[%clk 0:03:00]}  c5 {[%clk 0:02:59]} 2. Nf3 {[%clk 0:02:52]}  d6 {[%clk 0:02:59]} 3. d4 {[%clk 0:02:52]}  Nf6 {[%clk 0:02:58]} 4. Nc3 {[%clk 0:02:45]}  cxd4 {[%clk 0:02:56]} 5. Qxd4 {[%clk 0:02:45]}  Nc6 {[%clk 0:02:51]} 6. Bb5 {[%clk 0:02:45]}  Bd7 {[%clk 0:02:49]} 7. Bxc6 {[%clk 0:02:45]}  Bxc6 {[%clk 0:02:49]} 8. Bg5 {[%clk 0:02:45]}  e6 {[%clk 0:02:48]} 9. O-O-O {[%clk 0:02:45]}  Be7 {[%clk 0:02:48]} 10. Rhe1 {[%clk 0:02:46]}  O-O {[%clk 0:02:45]} 11. Kb1 {[%clk 0:02:46]}  e5 {[%clk 0:02:39]} 12. Qd3 {[%clk 0:02:43]}  Qb6 {[%clk 0:02:24]} 13. Bxf6 {[%clk 0:02:38]}  Bxf6 {[%clk 0:02:24]} 14. Qxd6 {[%clk 0:02:38]}  Qxf2 {[%clk 0:02:22]} 15. Nxe5 {[%clk 0:02:02]}  Rad8 {[%clk 0:02:16]} 16. Qc7 {[%clk 0:02:02]}  Rc8 {[%clk 0:02:13]} 17. Qd6 {[%clk 0:01:49]}  Rfd8 {[%clk 0:02:13]} 18. Nd3 {[%clk 0:01:41]}  Qb6 {[%clk 0:01:43]} 19. Qa3 {[%clk 0:01:28]}  Bxc3 {[%clk 0:01:16]} 20. Qxc3 {[%clk 0:01:29]}  Bxe4 {[%clk 0:01:13]} 21. Qe5 {[%clk 0:01:06]}  Bg6 {[%clk 0:01:10]} 22. Re2 {[%clk 0:00:59]}  h6 {[%clk 0:01:05]} 23. g4 {[%clk 0:00:57]}  Rc4 {[%clk 0:00:56]} 24. b3 {[%clk 0:00:57]}  Rxg4 {[%clk 0:00:51]} 25. h3 {[%clk 0:00:49]}  Rgd4 {[%clk 0:00:50]} 26. Rg2 {[%clk 0:00:43]}  R4d5 {[%clk 0:00:47]} 27. Qc3 {[%clk 0:00:39]}  Qd4 {[%clk 0:00:46]} 28. Qc7 {[%clk 0:00:33]}  R5d7 {[%clk 0:00:42]} 29. Qg3 {[%clk 0:00:32]}  Qc3 {[%clk 0:00:38]} 30. h4 {[%clk 0:00:30]}  a5 {[%clk 0:00:34]} 31. Rc1 {[%clk 0:00:24]}  Rxd3 {[%clk 0:00:28]} 32. Qf2 {[%clk 0:00:06]}  Rd2 {[%clk 0:00:25]} 33. Qb6 {[%clk 0:00:06]}  Bxc2+ {[%clk 0:00:23]} 34. Rxc2 {[%clk 0:00:06]}  Qxc2+ {[%clk 0:00:23]} 35. Ka1 {[%clk 0:00:07]}  Qc3+ {[%clk 0:00:15]} 36. Kb1 {[%clk 0:00:06]}  Qc2+ {[%clk 0:00:14]} 37. Ka1 {[%clk 0:00:07]}  Qc1# {[%clk 0:00:14]} 0-1


[Site "https://www.chess.com"]

[Event "Titled Tuesday Blitz September 13 Late 2022"]
[White "Sztokbant, Bernardo Vainzoff"]
[Black "Gomez Ledo, Roberto Carlos"]
[WhiteFideId "2115956"]
[BlackFideId "3507076"]
[WhiteElo "2172"]
[BlackElo "2379"]
[Result "1-0"]
[Round "10"]
[TimeControl "180+1"]
[Date "2022.09.13"]
[WhiteClock "0:00:03"]
[BlackClock "0:00:03"]

1. Nf3 {[%clk 0:03:00]}  Nf6 {[%clk 0:02:54]} 2. b3 {[%clk 0:03:00]}  d5 {[%clk 0:02:54]} 3. Bb2 {[%clk 0:03:01]}  Bf5 {[%clk 0:02:54]} 4. e3 {[%clk 0:03:01]}  e6 {[%clk 0:02:54]} 5. d4 {[%clk 0:03:02]}  Nbd7 {[%clk 0:02:48]} 6. Bd3 {[%clk 0:03:00]}  Bg6 {[%clk 0:02:48]} 7. O-O {[%clk 0:02:58]}  Bd6 {[%clk 0:02:47]} 8. c4 {[%clk 0:02:58]}  c6 {[%clk 0:02:47]} 9. Nc3 {[%clk 0:02:58]}  Ne4 {[%clk 0:02:29]} 10. Ne2 {[%clk 0:02:55]}  f5 {[%clk 0:02:26]} 11. Nf4 {[%clk 0:02:54]}  Qf6 {[%clk 0:02:24]} 12. Ne1 {[%clk 0:02:37]}  O-O {[%clk 0:02:13]} 13. f3 {[%clk 0:02:36]}  Ng5 {[%clk 0:02:12]} 14. Be2 {[%clk 0:02:30]}  h6 {[%clk 0:02:08]} 15. Ned3 {[%clk 0:02:25]}  Nf7 {[%clk 0:02:08]} 16. Qc1 {[%clk 0:01:56]}  Bh7 {[%clk 0:02:06]} 17. Ba3 {[%clk 0:01:50]}  Bxa3 {[%clk 0:01:52]} 18. Qxa3 {[%clk 0:01:50]}  dxc4 {[%clk 0:01:50]} 19. bxc4 {[%clk 0:01:50]}  e5 {[%clk 0:01:49]} 20. Nh5 {[%clk 0:01:34]}  Qe6 {[%clk 0:01:36]} 21. Rfe1 {[%clk 0:01:23]}  exd4 {[%clk 0:01:32]} 22. exd4 {[%clk 0:01:23]}  Qxc4 {[%clk 0:01:30]} 23. Qb2 {[%clk 0:01:21]}  Qb5 {[%clk 0:01:08]} 24. Qc3 {[%clk 0:01:08]}  Qd5 {[%clk 0:00:48]} 25. Ndf4 {[%clk 0:01:05]}  Qd6 {[%clk 0:00:44]} 26. Bc4 {[%clk 0:00:59]}  Kh8 {[%clk 0:00:27]} 27. Re6 {[%clk 0:00:52]}  Qc7 {[%clk 0:00:20]} 28. Re7 {[%clk 0:00:46]}  Nd6 {[%clk 0:00:08]} 29. Be6 {[%clk 0:00:36]}  Rad8 {[%clk 0:00:07]} 30. Rxg7 {[%clk 0:00:27]}  Nb5 {[%clk 0:00:07]} 31. Qe3 {[%clk 0:00:19]}  Qd6 {[%clk 0:00:07]} 32. Rd1 {[%clk 0:00:16]}  Nf6 {[%clk 0:00:07]} 33. Rxb7 {[%clk 0:00:11]}  Rde8 {[%clk 0:00:04]} 34. d5 {[%clk 0:00:05]}  Nxh5 {[%clk 0:00:04]} 35. Nxh5 {[%clk 0:00:05]}  cxd5 {[%clk 0:00:04]} 36. Qxh6 {[%clk 0:00:04]}  Re7 {[%clk 0:00:03]} 37. Qxf8+ {[%clk 0:00:03]} 1-0


[Site "https://www.chess.com"]

[Event "Titled Tuesday Blitz September 13 Late 2022"]
[White "Bluebaum, Matthias"]
[Black "Yoo, Christopher Woojin"]
[WhiteFideId "24651516"]
[BlackFideId "30909694"]
[WhiteElo "2633"]
[BlackElo "2105"]
[Result "1-0"]
[Round "11"]
[TimeControl "180+1"]
[Date "2022.09.13"]
[WhiteClock "0:00:19"]
[BlackClock "0:00:01"]

1. d4 {[%clk 0:03:00]}  Nf6 {[%clk 0:02:59]} 2. c4 {[%clk 0:03:01]}  e6 {[%clk 0:02:57]} 3. Nc3 {[%clk 0:03:01]}  Bb4 {[%clk 0:02:54]} 4. e3 {[%clk 0:03:01]}  O-O {[%clk 0:02:53]} 5. Bd2 {[%clk 0:03:02]}  d5 {[%clk 0:02:51]} 6. Nf3 {[%clk 0:03:02]}  b6 {[%clk 0:02:47]} 7. cxd5 {[%clk 0:03:02]}  exd5 {[%clk 0:02:46]} 8. Rc1 {[%clk 0:03:03]}  Bb7 {[%clk 0:02:45]} 9. Bd3 {[%clk 0:03:02]}  Re8 {[%clk 0:02:43]} 10. O-O {[%clk 0:03:00]}  Bf8 {[%clk 0:02:43]} 11. Ne5 {[%clk 0:02:59]}  c5 {[%clk 0:02:43]} 12. Bb5 {[%clk 0:02:58]}  Re6 {[%clk 0:02:40]} 13. f4 {[%clk 0:02:59]}  a6 {[%clk 0:02:40]} 14. Ba4 {[%clk 0:02:57]}  b5 {[%clk 0:02:32]} 15. Bc2 {[%clk 0:02:57]}  Nc6 {[%clk 0:02:29]} 16. Be1 {[%clk 0:02:58]}  Qb6 {[%clk 0:02:07]} 17. Bf2 {[%clk 0:02:54]}  cxd4 {[%clk 0:02:03]} 18. exd4 {[%clk 0:02:55]}  Rd8 {[%clk 0:01:46]} 19. a3 {[%clk 0:02:53]}  Na5 {[%clk 0:01:33]} 20. Kh1 {[%clk 0:02:25]}  Nc4 {[%clk 0:01:19]} 21. b3 {[%clk 0:02:25]}  Nxa3 {[%clk 0:01:10]} 22. Bf5 {[%clk 0:02:22]}  Ree8 {[%clk 0:01:09]} 23. Bh4 {[%clk 0:02:22]}  g6 {[%clk 0:01:07]} 24. Bh3 {[%clk 0:02:12]}  b4 {[%clk 0:00:46]} 25. f5 {[%clk 0:02:11]}  g5 {[%clk 0:00:35]} 26. Na4 {[%clk 0:02:10]}  Qd6 {[%clk 0:00:34]} 27. Bxg5 {[%clk 0:02:07]}  Bg7 {[%clk 0:00:34]} 28. Nc5 {[%clk 0:02:03]}  Ba8 {[%clk 0:00:32]} 29. Bf4 {[%clk 0:01:58]}  Qb6 {[%clk 0:00:30]} 30. Qf3 {[%clk 0:01:47]}  Nb5 {[%clk 0:00:27]} 31. Qf2 {[%clk 0:01:09]}  Nc3 {[%clk 0:00:25]} 32. Rce1 {[%clk 0:01:08]}  Nfe4 {[%clk 0:00:22]} 33. Qh4 {[%clk 0:01:01]}  Qf6 {[%clk 0:00:14]} 34. Qh5 {[%clk 0:01:01]}  Nxc5 {[%clk 0:00:07]} 35. dxc5 {[%clk 0:01:02]}  Ne4 {[%clk 0:00:05]} 36. Ng4 {[%clk 0:00:59]}  Qd4 {[%clk 0:00:05]} 37. f6 {[%clk 0:00:54]}  Nxf6 {[%clk 0:00:04]} 38. Nh6+ {[%clk 0:00:49]}  Bxh6 {[%clk 0:00:03]} 39. Qxh6 {[%clk 0:00:50]}  Ne4 {[%clk 0:00:02]} 40. Be3 {[%clk 0:00:23]}  Qg7 {[%clk 0:00:03]} 41. Qh4 {[%clk 0:00:20]}  d4 {[%clk 0:00:03]} 42. Bh6 {[%clk 0:00:20]}  Qg6 {[%clk 0:00:03]} 43. Bf5 {[%clk 0:00:21]}  Qf6 {[%clk 0:00:01]} 44. Bxh7+ {[%clk 0:00:18]}  Kxh7 {[%clk 0:00:01]} 45. Bg5+ {[%clk 0:00:18]}  Kg8 {[%clk 0:00:01]} 46. Bxf6 {[%clk 0:00:19]} 1-0


[Site "https://www.chess.com"]